Workbook

Sheet Goth Ghent (policy)
A1: Baseline (2014) | AM1: BAF CALCULATION AS A FUNCTION OF MGO PRICE (2015) | AS1: External cost per kg | AV1: Pollutant | AW1: 2014 Handbook | BA1: COWI/DTU study | BE1: External cost | BF1: 2014 Handbook (EU) | BI1: COWI/DTU study (DK) | BL1: Present study (EU) | BP1: Road Truck Emissions (taken from DESMO Cargo model) | BX1: Total Emissions per mode | CC1: Total Emissions per mode
A2: Option 1 (DFDS link) | O2: Option 2 (Other Maritime) | AA2: Option 3 Road only | AM2: MGO PRICE | AN2: FC1 | AO2: FC2 | AP2: FC3 | AR2: CO2 | AS2: SO2 | AT2: NOx | AU2: Total | AW2: Low | AX2: Medium | AY2: High | BA2: Low | BB2: Medium | BC2: High | BF2: Low | BG2: Medium | BH2: High | BI2: Low | BJ2: Medium | BK2: High | BL2: Low | BM2: Medium | BN2: High | BQ2: CO2 emissions per lanemeter per km | BR2: SOx emissions per lanemeter per km | BS2: NOx emissions per lanemeter per km | BT2: Particulate emissions per lanemeter per km | BY2: CO2 | BZ2: SO2 | CA2: NOx | CB2: PM2.5
A3: Generalized Cost | B3: Freight Rate (€/lm) | C3: of which BAF | D3: Road Cost (€/lm) | E3: Road Distance (km) | F3: Cargo Value (€/lm) | G3: Depreciation Rate (%) | H3: Total Time (hr) | I3: Emissions (kg/lm) | J3: CO2 | K3: SO2 | L3: NOx | M3: PM2.5 | N3: Transported lm/trip | O3: GC | P3: Freight Rate (€/lm) | Q3: Road Cost (€/lm) | R3: Road Distance (km) | S3: Cargo Value (€/lm) | T3: Depreciation Rate (%) | U3: Total Time | V3: Emissions (kg/lm) | W3: CO2 | X3: SO2 | Y3: NOx | Z3: PM2.5 | AA3: GC | AB3: Road Cost | AC3: Road Distance | AD3: Cargo Value | AE3: Depreciation Rate | AF3: Total Time | AG3: Emissions (kg/lm) | AH3: CO2 | AI3: SO2 | AJ3: NOx | AK3: PM2.5 | AM3: ROUTE | AN3: 422.39 | AO3: 604.02 | AP3: 231.88 | AR3: 0.09 | AS3: 10.241 | AT3: 10.64 | AV3: CO2 | AW3: 0.0589 | AX3: 0.1104 | AY3: 0.2061 | BA3: 0.007 | BB3: 0.0106 | BC3: 0.0106 | BE3: Climate change | BF3: 0.036 | BG3: 0.0859 | BH3: 0.2428 | BI3: 0.0069 | BJ3: 0.0105 | BK3: 0.0105 | BL3: 0.0069 | BM3: 0.0859 | BN3: 0.2428 | BP3: EURO 4,5,6 | BQ3: 72.90011682 | BR3: 0.01136932577 | BS3: 0.3979264019 | BT3: 0.002273865154 | BW3: Baseline | BX3: Option 1 (DFDS link) | BY3: =J4+J5 -> 48.13622702 | BZ3: =K4+K5 -> 0.005579551445 | CA3: 0.05245410396 | CB3: 0.0005335409026
A4: =B4+C8+D4*E4+H4*(F4*G4/(365*24)) -> 74.07665437 | B4: 50.17167854 | C4: 0 | D4: =0.0333333333333333 -> 0.03333333333 | E4: 100 | F4: 100000 | G4: 0.045 | H4: =577/'Goth - Ghent (RoRo measures)'!J6+E4/70+2+2 -> 37.37944464 | I4: Maritime (SOx, NOx, PM2.5 port only) | J4: =((('Goth - Ghent (RoRo measures)'!C9+'Goth - Ghent (RoRo measures)'!D9)*'Goth - Ghent (RoRo measures)'!G6/'Goth - Ghent (RoRo measures)'!A4)+('Goth - Ghent (RoRo measures)'!E9*'Goth - Ghent (RoRo measures)'!F6/'Goth - Ghent (RoRo measures)'!A4))*3.021*1000/N4 -> 40.84621534 | K4: =1000*('Goth - Ghent (RoRo measures)'!E9*'Goth - Ghent (RoRo measures)'!F6/'Goth - Ghent (RoRo measures)'!A4)*0.02/N4 -> 0.004442618869 | L4: =1000*('Goth - Ghent (RoRo measures)'!E9*'Goth - Ghent (RoRo measures)'!F6/'Goth - Ghent (RoRo measures)'!A4)*0.057/N4 -> 0.01266146378 | M4: =1000*('Goth - Ghent (RoRo measures)'!E9*'Goth - Ghent (RoRo measures)'!F6/'Goth - Ghent (RoRo measures)'!A4)*3.17/(2300*N4) -> 0.0003061543873 | N4: =(3831+4650+3831)/3*F14 -> 3421.405358 | O4: =P4+R4*Q4+U4*(S4*T4/(365*24)) -> 72.83675799 | P4: 40 | Q4: =D4 -> 0.03333333333 | R4: 700 | S4: =F4 -> 100000 | T4: =G4 -> 0.045 | U4: =R4/70+8.5 -> 18.5 | V4: Maritime (SOx, NOx, PM2.5 port only) | W4: =J4*300/577 -> 21.23720035 | X4: =K4*300/577 -> 0.002309853831 | Y4: =L4*300/577 -> 0.006583083419 | Z4: =M4*300/577 -> 0.0001591790575 | AA4: =AC4*AB4+AF4*(AD4*AE4/(365*24)) -> 65.07501631 | AB4: =0.0333333333333333 -> 0.03333333333 | AC4: 1600 | AD4: 100000 | AE4: =G4 -> 0.045 | AF4: =AC4/70 -> 22.85714286 | AG4: Road (assuming Truck Euro 4-6) | AH4: No Maritime Emissions | AM4: GOTH GHENT | AN4: =0.0207*AN3-7.3736 -> 1.369873 | AO4: =0.0207*AO3-7.3736 -> 5.129614 | AP4: =0.0207*AP3-7.3736 -> -2.573684 | AV4: PM2.5 | AX4: 34.7875 | BA4: 4.639 | BB4: 52.3539 | BC4: 1568.3829 | BE4: Air Pollution | BF4: 0.0013 | BG4: 0.0899 | BH4: 0.485 | BI4: 0.0024 | BJ4: 0.0677 | BK4: 0.4786 | BL4: 0.0013 | BM4: 0.0899 | BN4: 0.485 | BQ4: =IF($A$28>70,BQ3,(($A$28/70)^0.4)*BQ3) -> 72.90011682 | BR4: =IF($A$28>70,BR3,(($A$28/70)^0.4)*BR3) -> 0.01136932577 | BS4: =IF($A$28>70,BS3,(($A$28/70)^0.4)*BS3) -> 0.3979264019 | BT4: =IF($A$28>70,BT3,(($A$28/70)^0.4)*BT3) -> 0.002273865154 | BX4: Option (Other Maritime) | BY4: =W4+W5 -> 72.26728212 | BZ4: =X4+X5 -> 0.01026838187 | CA4: 0.2851315647 | CB4: 0.001750884665
I5: Road (assuming Truck Euro 4-6) | J5: =$E$4*BQ3/1000 -> 7.290011682 | K5: =$E$4*BR3/1000 -> 0.001136932577 | L5: 0.03979264019 | M5: 0.0002273865154 | V5: Road (assuming Truck Euro 4-6) | W5: =$R$4*BQ3/1000 -> 51.03008178 | X5: =$R$4*BR3/1000 -> 0.007958528037 | Y5: 0.2785484813 | Z5: 0.001591705607 | AH5: =$AC$4*BQ3/1000 -> 116.6401869 | AI5: =$AC$4*BR3/1000 -> 0.01819092123 | AJ5: 0.636682243 | AK5: 0.003638184246 | AM5: ESB IMMI | AN5: =0.0171*AN3-6.0313 -> 1.191569 | AO5: =0.0171*AO3-6.0313 -> 4.297442 | AP5: =0.0171*AP3-6.0313 -> -2.066152 | BX5: Option 3 (Road Only) | BY5: =AH5 -> 116.6401869 | BZ5: =AI5 -> 0.01819092123 | CA5: 0.636682243 | CB5: 0.003638184246
A6: No policy applied (2015) | AM6: ROT FELIX | AN6: =0.0063*AN3-2.221 -> 0.440057 | AO6: =0.0063*AO3-2.221 -> 1.584326 | AP6: =0.0063*AP3-2.221 -> -0.760156 | AV6: NOx | AX6: 7.5837 | BA6: 0.0043 | BB6: 7.0668 | BC6: 54.2781 | BE6: Noise | BF6: 0.0005 | BG6: 0.1026 | BH6: 0.6042 | BI6: 0.0072 | BJ6: 0.0144 | BK6: 0.0289 | BL6: 0.0005 | BM6: 0.1026 | BN6: 0.6042 | BP6: Sea region (€/kg) | BQ6: PM2.5 | BR6: NOx | BS6: SO2 | BT6: Present study (EU) | BW6: No policy | BX6: Option 1 (DFDS link) | BY6: =J8+J9 -> 46.90680333 | BZ6: =K8+K9 -> 0.005445833772 | CA6: 0.05207300859 | CB6: 0.0005243260108
A7: =A2 -> Option 1 (DFDS link) | O7: Option 2 (Other Maritime) | AA7: Option 3 Road only | AM7: COP OSLO | AN7: =0.0171*AN3-6.0313 -> 1.191569 | AO7: =0.0171*AO3-6.0313 -> 4.297442 | AP7: =0.0171*AP3-6.0313 -> -2.066152 | AV7: SO2 | AX7: 8.2433 | BA7: 1.4199 | BB7: 28.1214 | BC7: 167.2566 | BE7: Accidents | BF7: 0.0025 | BG7: 0.0152 | BH7: 0.038 | BI7: 0.0403 | BJ7: 0.1839 | BK7: 0.2421 | BL7: 0.0025 | BM7: 0.0152 | BN7: 0.2421 | BP7: Baltic Sea | BQ7: 17.4762 | BR7: 5.952 | BS7: 6.6486 | BT7: CO2 | BX7: Option (Other Maritime) | BY7: =W8+W9 -> 71.62806703 | BZ7: =X8+X9 -> 0.01019885795 | CA7: 0.2849334216 | CB7: 0.00174609356
A8: =B8+D8*E8+H8*(F8*G8/(365*24)) -> 69.88512832 | B8: 47.35002548 | C8: 1.369873 | D8: =D4 -> 0.03333333333 | E8: =E4 -> 100 | F8: =F4 -> 100000 | G8: 0.045 | H8: =577/'Goth - Ghent (RoRo measures)'!J6+E4/70+2+2 -> 37.37944464 | I8: Maritime (SOx, NOx, PM2.5 port only) | J8: =((('Goth - Ghent (RoRo measures)'!C9+'Goth - Ghent (RoRo measures)'!D9)*'Goth - Ghent (RoRo measures)'!G6/'Goth - Ghent (RoRo measures)'!A4)+('Goth - Ghent (RoRo measures)'!E9*'Goth - Ghent (RoRo measures)'!F6/'Goth - Ghent (RoRo measures)'!A4))*3.021*1000/N8 -> 39.61679165 | K8: =1000*('Goth - Ghent (RoRo measures)'!E9*'Goth - Ghent (RoRo measures)'!F6/'Goth - Ghent (RoRo measures)'!A4)*0.02/N8 -> 0.004308901195 | L8: =1000*('Goth - Ghent (RoRo measures)'!E9*'Goth - Ghent (RoRo measures)'!F6/'Goth - Ghent (RoRo measures)'!A4)*0.057/N8 -> 0.01228036841 | M8: =1000*('Goth - Ghent (RoRo measures)'!E9*'Goth - Ghent (RoRo measures)'!F6/'Goth - Ghent (RoRo measures)'!A4)*3.17/(2300*N8) -> 0.0002969394954 | N8: =(3831+4650+3831)/3*F18 -> 3527.581467 | O8: =P8+R8*Q8+U8*(S8*T8/(365*24)) -> 72.83675799 | P8: =P4 -> 40 | Q8: =Q4 -> 0.03333333333 | R8: =R4 -> 700 | S8: =S4 -> 100000 | T8: 0.045 | U8: =R8/70+8.5 -> 18.5 | V8: Maritime (SOx, NOx, PM2.5 port only) | W8: =J8*300/577 -> 20.59798526 | X8: =K8*300/577 -> 0.002240329911 | Y8: =L8*300/577 -> 0.006384940246 | Z8: =M8*300/577 -> 0.0001543879526 | AA8: =AC8*AB8+AF8*(AD8*AE8/(365*24)) -> 65.07501631 | AB8: =0.0333333333333333 -> 0.03333333333 | AC8: =AC4 -> 1600 | AD8: =AD4 -> 100000 | AE8: =AE4 -> 0.045 | AF8: =AC8/70 -> 22.85714286 | AG8: Road (assuming Truck Euro 4-6) | AH8: No Maritime Emissions | AM8: KLAI KIEL | AN8: =0.0252*AN3-8.8806 -> 1.763628 | AO8: =0.0252*AO3-8.8806 -> 6.340704 | AP8: =0.0252*AP3-8.8806 -> -3.037224 | AR8: =$AR$3*J8 -> 3.565511248 | AS8: =$AS$3*K8 -> 0.04412745714 | AT8: =$AT$3*L8 -> 0.1306631198 | AU8: =AR8+AS8+AT8 -> 3.740301825 | AV8: CO2 | AW8: =AW3*$J$8 -> 2.333429028 | AX8: =AX3*$J$8 -> 4.373693798 | AY8: =AY3*$J$8 -> 8.165020759 | BA8: =BA3*$J$8 -> 0.2773175415 | BB8: =BB3*$J$8 -> 0.4199379915 | BC8: =BC3*$J$8 -> 0.4199379915 | BE8: Congestion | BF8: 0 | BG8: 0.5138 | BH8: 7.7744 | BI8: 0.0195 | BJ8: 0.0856 | BK8: 0.2513 | BL8: 0 | BM8: 0.5138 | BN8: 7.7744 | BP8: Black Sea | BQ8: 28.5572 | BR8: 5.3189 | BS8: 10.0678 | BT8: Medium | BX8: Option 3 (Road Only) | BY8: =AH9 -> 116.6401869 | BZ8: =AI9 -> 0.01819092123 | CA8: 0.636682243 | CB8: 0.003638184246
I9: Road (assuming Truck Euro 4-6) | J9: =$E$8*BQ3/1000 -> 7.290011682 | K9: =$E$8*BR3/1000 -> 0.001136932577 | L9: 0.03979264019 | M9: 0.0002273865154 | V9: Road (assuming Truck Euro 4-6) | W9: =$R$8*BQ3/1000 -> 51.03008178 | X9: =$R$8*BR3/1000 -> 0.007958528037 | Y9: 0.2785484813 | Z9: 0.001591705607 | AH9: =$AC$8*BQ3/1000 -> 116.6401869 | AI9: =$AC$8*BR3/1000 -> 0.01819092123 | AJ9: 0.636682243 | AK9: 0.003638184246 | AM9: KLAI KARLS | AN9: =0.0145*AN3-5.1125 -> 1.012155 | AO9: =0.0145*AO3-5.1125 -> 3.64579 | AP9: =0.0145*AP3-5.1125 -> -1.75024 | BP9: Mediterranean Sea | BQ9: 23.4283 | BR9: 2.3428 | BS9: 8.4848 | BT9: 0.1104 | BW9: Policy | BX9: Option 1 (DFDS link) | BY9: =J11+J12 -> 48.06364904 | BZ9: =K11+K12 -> 0.008497972119 | CA9: 0.06077160288 | CB9: 0.0007346581534
A10: Mitigate Modal Shift Via Policy (2015) | AM10: DOV CAL | AN10: =0.0048*AN3-1.6984 -> 0.329072 | AO10: =0.0048*AO3-1.6984 -> 1.200896 | AP10: =0.0048*AP3-1.6984 -> -0.585376 | AV10: PM2.5 | AX10: =AX4*$M$8 -> 0.0103297827 | BA10: =BA4*$M$8 -> 0.001377502319 | BB10: =BB4*$M$8 -> 0.01554594065 | BC10: =BC4*$M$8 -> 0.4657148269 | BE10: Infrastructure | BF10: 0.019 | BG10: 0.0659 | BH10: 0.5711 | BI10: 0.0375 | BJ10: 0.15 | BK10: 0.225 | BL10: 0.019 | BM10: 0.0659 | BN10: 0.5711 | BP10: North Sea | BQ10: 32.673 | BR10: 7.535 | BS10: 9.6246 | BX10: Option (Other Maritime) | BY10: =W11+W12 -> 72.22954661 | BZ10: =X11+X12 -> 0.0117857583 | CA10: 0.2894560876 | CB10: 0.001855451693
A11: =B11+(-C28)+D28+(E28+F28)*E11+D11*E11+H11*(F11*G11/(365*24))+E11*E28 -> 69.88512832 | B11: 47.35002548 | C11: 1.369873 | D11: =D4*(100+B28)/100 -> 0.03333333333 | E11: =E4 -> 100 | F11: =F4 -> 100000 | G11: 0.045 | H11: =577/'Goth - Ghent (RoRo measures)'!J17+E4/(IF(A28>70,70,A28))+2+2 -> 37.37944464 | I11: Maritime (SOx, NOx, PM2.5 port only) | J11: =((('Goth - Ghent (RoRo measures)'!C21+'Goth - Ghent (RoRo measures)'!D21)*'Goth - Ghent (RoRo measures)'!G6/'Goth - Ghent (RoRo measures)'!A22)+('Goth - Ghent (RoRo measures)'!E21*'Goth - Ghent (RoRo measures)'!F17/'Goth - Ghent (RoRo measures)'!A22))*3.021*1000/N11 -> 40.77363736 | K11: =1000*('Goth - Ghent (RoRo measures)'!E21*'Goth - Ghent (RoRo measures)'!F17/'Goth - Ghent (RoRo measures)'!A22)*0.02/N11 -> 0.007361039542 | L11: =1000*('Goth - Ghent (RoRo measures)'!E21*'Goth - Ghent (RoRo measures)'!F17/'Goth - Ghent (RoRo measures)'!A22)*0.057/N11 -> 0.02097896269 | M11: =1000*('Goth - Ghent (RoRo measures)'!E21*'Goth - Ghent (RoRo measures)'!F17/'Goth - Ghent (RoRo measures)'!A22)*3.17/(2300*N11) -> 0.000507271638 | N11: =(3831+4650+3831)/3*((C22)/(C18/F18)) -> 3527.581467 | O11: =P11+(-C28)*(300/577)+D28+E28*R11+R11*Q11+U11*(S11*T11/(365*24))+R11*E28+D28 -> 72.83675799 | P11: 40 | Q11: =D11 -> 0.03333333333 | R11: =R4 -> 700 | S11: 100000 | T11: =T4 -> 0.045 | U11: =R11/(IF(A28>70,70,A28))+8.5 -> 18.5 | V11: Maritime (SOx, NOx, PM2.5 port only) | W11: =J11*300/577 -> 21.19946483 | X11: =K11*300/577 -> 0.003827230264 | Y11: =L11*300/577 -> 0.01090760625 | Z11: =M11*300/577 -> 0.0002637460856 | AA11: =AC11*AB11+AF11*(AD11*AE11/(365*24))+AC11*E28 -> 65.07501631 | AB11: =D11 -> 0.03333333333 | AC11: 1600 | AD11: 100000 | AE11: =AE4 -> 0.045 | AF11: =AC11/(IF(A28>70,70,A28)) -> 22.85714286 | AG11: Road (assuming Truck Euro 4-6) | AH11: No Maritime Emissions | AR11: =$AR$3*J11 -> 3.669627362 | AS11: =$AS$3*K11 -> 0.07538440595 | AT11: =$AT$3*L11 -> 0.2232161631 | AU11: =AR11+AS11+AT11 -> 3.968227932 | AV11: NOx | AX11: =AX6*$L$8 -> 0.09313062989 | BA11: =BA6*$L$8 -> 5.280558415e-05 | BB11: =BB6*$L$8 -> 0.08678290746 | BC11: 0.6665550644 | BE11: Total | BF11: 0.0593 | BG11: 0.8732 | BH11: 9.7155 | BI11: 0.1138 | BJ11: 0.5121 | BK11: 1.2363 | BL11: 0.0302 | BM11: 0.8732 | BN11: 9.9196 | BP11: North-East Atlantic | BQ11: 7.0285 | BR11: 2.8494 | BS11: 3.6725 | BX11: Option 3 (Road Only) | BY11: =AH12 -> 116.6401869 | BZ11: =AI12 -> 0.01819092123 | CA11: 0.636682243 | CB11: 0.003638184246
I12: Road (assuming Truck Euro 4-6) | J12: =$E$11*BQ3/1000 -> 7.290011682 | K12: =$E$11*BR3/1000 -> 0.001136932577 | L12: 0.03979264019 | M12: 0.0002273865154 | V12: Road (assuming Truck Euro 4-6) | W12: =$R$11*BQ3/1000 -> 51.03008178 | X12: =$R$11*BR3/1000 -> 0.007958528037 | Y12: 0.2785484813 | Z12: 0.001591705607 | AH12: =$AC$11*BQ4/1000 -> 116.6401869 | AI12: =$AC$11*BR4/1000 -> 0.01819092123 | AJ12: 0.636682243 | AK12: 0.003638184246 | AV12: SO2 | AX12: =AX7*$K$8 -> 0.03551956522 | BA12: =BA7*$K$8 -> 0.006118208807 | BB12: =BB7*$K$8 -> 0.1211723341 | BC12: 0.7206921637 | BT12: 47.35002548
A13: λ2 (Mar - Mar) | B13: 0.0272 | C13: λ1 (Mar - Land) | D13: 0.0252 | F13: Utilization Rate | BF13: =('[1]Goth - Ghent'!$E$4,'[1]Goth - Ghent'!$D$4:$E$4) ->  | BM13: =SUM(BM3:BM10) -> 0.8733
B14: SHARE option 1 | C14: =(1-C16)*EXP(-A4*$B$13)/(EXP(-A4*$B$13)+EXP(-O4*$B$13)) -> 0.2979573734 | F14: 0.8336757695 | AV14: Total emissions | AX14: =SUM(AX8:AX12) -> 4.512673776 | BA14: =SUM(BA8:BA12) -> 0.2848660582 | BB14: =SUM(BB8:BB12) -> 0.6434391736 | BC14: 2.272900046
B15: SHARE option 2 | C15: =(1-C16)*EXP(-O4*$B$13)/(EXP(-A4*$B$13)+EXP(-O4*$B$13)) -> 0.3081774075
B16: SHARE option 3 | C16: =EXP(-AA4*$D$13)/(EXP(-AA4*$D$13)+EXP((-(-1/$B$13)*LN((EXP(-$B$13*A4)+EXP(-$B$13*O4))))*$D$13)) -> 0.3938652192 | D16: Change in Market Share
AX17: =AX3*$J$11 -> 4.501409565
B18: SHARE option 1 | C18: =(1-C20)*EXP(-A8*$B$13)/(EXP(-A8*$B$13)+EXP(-O8*$B$13)) -> 0.3218210993 | D18: =(C18-$C$14) -> 0.02386372595 | F18: 0.8595471411 | AX18: =AX4*$M$11 -> 0.01764671211
B19: SHARE option 2 | C19: =(1-C20)*EXP(-O8*$B$13)/(EXP(-A8*$B$13)+EXP(-O8*$B$13)) -> 0.296993862 | D19: =(C19-$C$15) -> -0.01118354547 | AX19: =AX6*$L$11 -> 0.1590981594
B20: SHARE option 3 | C20: =EXP(-AA8*$D$13)/(EXP(-AA8*$D$13)+EXP((-(-1/$B$13)*LN((EXP(-$B$13*A8)+EXP(-$B$13*O8))))*$D$13)) -> 0.3811850387 | D20: =(C20-$C$16) -> -0.01268018049 | AX20: =AX7*$K$11 -> 0.06067925726
D21: Change in Market Share (Policy) | E21: New Utilization Rate After Policy
B22: SHARE option 1 NEW | C22: =(1-C24)*EXP(-A11*$B$13)/(EXP(-A11*$B$13)+EXP(-O11*$B$13)) -> 0.3218210993 | D22: =(C22-$C$14) -> 0.02386372595 | E22: =IF(((C22)/(C18/F18))>1,"Will require additional sailings/bigger vessels",(C22)/(C18/F18)) -> 0.8595471411 | AX22: =SUM(AX17:AX20) -> 4.738833693
B23: SHARE option 2 NEW | C23: =(1-C24)*EXP(-O11*$B$13)/(EXP(-A11*$B$13)+EXP(-O11*$B$13)) -> 0.296993862 | D23: =(C23-$C$15) -> -0.01118354547
B24: SHARE option 3 NEW | C24: =EXP(-AA11*$D$13)/(EXP(-AA11*$D$13)+EXP(-((-1/$B$13)*LN((EXP(-$B$13*A11)+EXP(-$B$13*O11))))*$D$13)) -> 0.3811850387 | D24: =(C24-$C$16) -> -0.01268018049
A25: Policy Options
A27: Road speed limit | B27: Tax Levy Road (%) | C27: Pay BAF for shipper | D27: Ext Cost Maritime (€/lm-trip) | E27: Ext Cost Road (€/lm-km) | F27: All External Road(€/lm-km)
A28: 70 | B28: 0 | C28: 0 | D28: 0 | E28: 0 | F28: 0
D31: =5.35709419137995/2 -> 2.678547096 | E31: =0.8732/18/2 -> 0.02425555556 | F31: =0.8732/18 -> 0.04851111111
D32: =5.84/2 -> 2.92
B33: Instructions on Using this Software This file allows the examination of the effects of a policy intervention to the Gothenburg - Ghent service. The User can select whether a speed limit on road is imposed, a tax levy (%) is added on the landbased components, the BAF is reimbursed to the shippers, or the external costs of transport are internalized for maritime modes, or for both maritime and landbased modes. The level of internalization applies to all external costs as a percentage of the values used in the DTU study. Any policy changes are then fed into the modal split model, which automatically calculates the new market shares of each option, and the new emissions per lanemeter of cargo for each of the three available options. The User needs to provide input in the yellow cells. The user can also change the sailing speed of Option 1 (DFDS), by adding extra hours in the sheet entitled " Goth - Ghent (RoRo measures). Graphs are automatically created to show this difference. To start testing the different policy measures, click on the button above. For more information, read the Public report on Task 3.2 ----> Should you require to change more parameters, please contact either of the following DTU team members: Harilaos Psaraftis hnpsar@dtu.dk Thalis Zis tzis@dtu.dk
AO34: Low | AP34: Medium | AQ34: High | AR34: Freight Rate (2015)
AO35: Handbook | AP35: COWI/DTU | AS35: COWI/DTU study
G38: LEGEND
G40: This means INPUT
G42: This means Result
G44: Link To Reports

Sheet Goth - Ghent (RoRo measures)
A1: BASELINE
A2: Ships Deployed | B2: 3
A3: Sailings per Week | C3: 2014 | G3: =32*2*A4/$B$2+2 -> 130 | H3: For brevik +2 | I3: Brevik always Begonia (NOW)
A4: 6
A5: ROUTE | B5: SHIP | C5: Average Fuel ME per hour SAILING per ship | D5: Average Fuel AE per hour SAILING per ship | E5: Average Fuel port per hour berth | F5: HOURS BERTH PER WEEK | G5: HOURS SAILING PER WEEK | I5: Sailing Distance | J5: Sailing Speed
A6: Baseline | B6: Ship A | C6: 2 | D6: 0.18 | E6: 0.25 | F6: 38 | G6: 130 | I6: =((($A$4-1)*577*2)+580+577+116)/$B$2 -> 2347.666667 | J6: =I6/G6 -> 18.05897436
A7: GOTHENBURG GHENT | B7: Ship B | C7: 2.1 | D7: 0.15 | E7: 0.27
B8: Ship C | C8: 1.87 | D8: 0.15 | E8: 0.18
B9: Ship D | C9: 1.93 | D9: 0.17 | E9: 0.12
B10: SHIP | C10: WEEKLY FUEL CONSUMPTION
B11: Magnolia | C11: =C6*$G$6/$B$2 -> 86.66666667 | D11: 7.8 | E11: =E6*$F$6/$B$2 -> 3.166666667
A12: Baseline | B12: Freesia | C12: 91 | D12: 6.5 | E12: =E7*$F$6/$B$2 -> 3.42
A13: Total Fuel Consumption WEEK | B13: Primula | C13: 81.03333333 | D13: 6.5 | E13: =E8*$F$6/$B$2 -> 2.28
B14: Petunia | C14: 83.63333333 | D14: 7.366666667 | E14: =E9*$F$6/$B$2 -> 1.52
B15: Average | C15: =AVERAGE(C11:C14) -> 85.58333333 | D15: =AVERAGE(D11:D14) -> 7.041666667 | E15: =#REF!*$F$6/$B$2 -> 
A16: Slow Steaming extra 1 Hour | B16: SHIP | C16: ME Sailing | D16: AE Sailing | E16: AE+Boilers BERTH | F16: NEW Hours berth per week | G16: New Sailing Hours | J16: New Sailing Speed
A17: extra 1 hour | B17: Ship A | C17: =C6*($J$17/$J$6)^$A$24 -> 2 | D17: 0.18 | E17: 0.25 | F17: =$G$6+$F$6-G17 -> 38 | G17: =($G$6/$A$4+A18)*A22 -> 130 | I17: =((($A$22-1)*577*2)+580+577+116)/$A$20 -> 2347.666667 | J17: =I17/G17 -> 18.05897436 | L17: =F17/7 -> 5.428571429 | M17: =G17/7 -> 18.57142857
A18: 0 | B18: Ship B | C18: =C7*($J$17/$J$6)^$A$24 -> 2.1 | D18: 0.15 | E18: 0.27 | F18: New Idle Berth Hours if freq change
A19: Ships Deployed | B19: Ship C | C19: =C8*($J$17/$J$6)^$A$24 -> 1.87 | D19: 0.15 | E19: 0.18 | F19: =IF(A22=A4,0,F17-$F$6) -> 0
A20: 3 | B20: Ship D | C20: =C9*($J$17/$J$6)^$A$24 -> 1.93 | D20: 0.17 | E20: 0.12
A21: New Sailings per Week | B21: AVERAGE | C21: =AVERAGE(C17:C20) -> 1.975 | D21: =AVERAGE(D17:D20) -> 0.1625 | E21: 0.205
A22: 6 | B22: SHIP | C22: ME Sailing | D22: AE Sailing | E22: AE+Boilers BERTH
A23: Proposed Exponent | B23: Ship A | C23: =C17*$G$17/$A$20 -> 86.66666667 | D23: =D17*$G$17/$A$20 -> 7.8 | E23: =E17*$F$17/$A$20 -> 3.166666667
A24: 3.5 | B24: Ship B | C24: =C18*$G$17/$A$20 -> 91 | D24: 6.5 | E24: =E18*$F$17/$A$20 -> 3.42
B25: Ship C | C25: 81.03333333 | D25: 6.5 | E25: 2.28
B26: Ship D | C26: 83.63333333 | D26: 7.366666667 | E26: 1.52
B27: Total | C27: =AVERAGE(C23:C26)*$A$20 -> 256.75 | D27: =AVERAGE(D23:D26)*$A$20 -> 21.125 | E27: 7.79
